[Event "January 9 Late 2024"]
[Site "https://www.chess.com"]
[Date "2024.01.09"]
[Round "10"]
[White "Pein, Jonathan"]
[Black "Reinecke, Katharina"]
[Result "0-1"]
[Board "133"]
[TimeControl "180+1"]
[WhiteFideId "417092"]
[BlackFideId "12929727"]
[WhiteElo "2313"]
[BlackElo "2021"]
[WhiteTeam "ENG"]
[BlackTeam "GER"]
[WhiteClock "0:00:09"]
[BlackClock "0:00:16"]

1. e4 {[%clk 0:03:00]}  c6 {[%clk 0:02:59]} 2. d4 {[%clk 0:02:54]}  d5 {[%clk 0:02:59]} 3. e5 {[%clk 0:02:55]}  Bf5 {[%clk 0:02:57]} 4. Ne2 {[%clk 0:02:55]}  e6 {[%clk 0:02:49]} 5. Ng3 {[%clk 0:02:54]}  Bg6 {[%clk 0:02:49]} 6. h4 {[%clk 0:02:54]}  h5 {[%clk 0:02:48]} 7. Be2 {[%clk 0:02:51]}  c5 {[%clk 0:02:44]} 8. c3 {[%clk 0:02:48]}  Nc6 {[%clk 0:02:43]} 9. Bxh5 {[%clk 0:02:46]}  Bxh5 {[%clk 0:02:37]} 10. Nxh5 {[%clk 0:02:46]}  g6 {[%clk 0:02:30]} 11. Bg5 {[%clk 0:02:37]}  Be7 {[%clk 0:02:28]} 12. Bxe7 {[%clk 0:02:21]}  Qxe7 {[%clk 0:02:26]} 13. Ng3 {[%clk 0:01:45]}  Rxh4 {[%clk 0:02:19]} 14. Rxh4 {[%clk 0:01:42]}  Qxh4 {[%clk 0:02:18]} 15. dxc5 {[%clk 0:01:40]}  Nxe5 {[%clk 0:02:14]} 16. Na3 {[%clk 0:01:30]}  O-O-O {[%clk 0:02:04]} 17. Nb5 {[%clk 0:01:25]}  a6 {[%clk 0:01:57]} 18. Nd6+ {[%clk 0:01:20]}  Kb8 {[%clk 0:01:57]} 19. Qb3 {[%clk 0:01:14]}  Rd7 {[%clk 0:01:44]} 20. O-O-O {[%clk 0:00:57]}  Qf4+ {[%clk 0:01:40]} 21. Rd2 {[%clk 0:00:50]}  Nd3+ {[%clk 0:01:38]} 22. Kc2 {[%clk 0:00:43]}  Nxc5 {[%clk 0:01:37]} 23. Qb4 {[%clk 0:00:17]}  Qxd6 {[%clk 0:01:35]} 24. Qh4 {[%clk 0:00:18]}  Ne7 {[%clk 0:01:22]} 25. b4 {[%clk 0:00:17]}  Na4 {[%clk 0:01:18]} 26. Kb3 {[%clk 0:00:16]}  Qc6 {[%clk 0:01:15]} 27. Qh8+ {[%clk 0:00:13]}  Ka7 {[%clk 0:01:10]} 28. Ne2 {[%clk 0:00:13]}  b5 {[%clk 0:01:04]} 29. g4 {[%clk 0:00:12]}  Qc4+ {[%clk 0:00:39]} 30. Ka3 {[%clk 0:00:12]}  Nc6 {[%clk 0:00:36]} 31. Qc8 {[%clk 0:00:10]}  Rb7 {[%clk 0:00:29]} 32. Qf8 {[%clk 0:00:07]}  Nxc3 {[%clk 0:00:27]} 33. Rc2 {[%clk 0:00:05]}  Nb1+ {[%clk 0:00:26]} 34. Kb2 {[%clk 0:00:05]}  Qxb4+ {[%clk 0:00:25]} 35. Qxb4 {[%clk 0:00:05]}  Nxb4 {[%clk 0:00:25]} 36. Rc8 {[%clk 0:00:04]}  Nd2 {[%clk 0:00:23]} 37. Nd4 {[%clk 0:00:04]}  Nd3+ {[%clk 0:00:22]} 38. Kc3 {[%clk 0:00:04]}  Nxf2 {[%clk 0:00:18]} 39. Kc2 {[%clk 0:00:05]}  Nde4 {[%clk 0:00:18]} 40. a3 {[%clk 0:00:04]}  Nxg4 {[%clk 0:00:17]} 41. a4 {[%clk 0:00:04]}  bxa4 {[%clk 0:00:17]} 42. Kd3 {[%clk 0:00:04]}  Nef2+ {[%clk 0:00:15]} 43. Kc3 {[%clk 0:00:04]}  e5 {[%clk 0:00:15]} 44. Nc6+ {[%clk 0:00:04]}  Kb6 {[%clk 0:00:15]} 45. Nd8 {[%clk 0:00:05]}  Rc7+ {[%clk 0:00:14]} 46. Rxc7 {[%clk 0:00:05]}  Kxc7 {[%clk 0:00:14]} 47. Nxf7 {[%clk 0:00:06]}  e4 {[%clk 0:00:13]} 48. Kd4 {[%clk 0:00:06]}  Kc6 {[%clk 0:00:12]} 49. Nd8+ {[%clk 0:00:05]}  Kd6 {[%clk 0:00:11]} 50. Nb7+ {[%clk 0:00:05]}  Ke6 {[%clk 0:00:11]} 51. Nc5+ {[%clk 0:00:05]}  Kf5 {[%clk 0:00:11]} 52. Nxa4 {[%clk 0:00:06]}  e3 {[%clk 0:00:11]} 53. Nc3 {[%clk 0:00:06]}  Kf4 {[%clk 0:00:11]} 54. Nxd5+ {[%clk 0:00:06]}  Kf3 {[%clk 0:00:12]} 55. Nc3 {[%clk 0:00:06]}  e2 {[%clk 0:00:12]} 56. Nxe2 {[%clk 0:00:06]}  Kxe2 {[%clk 0:00:12]} 57. Kc4 {[%clk 0:00:07]}  g5 {[%clk 0:00:11]} 58. Kb4 {[%clk 0:00:08]}  Ne3 {[%clk 0:00:12]} 59. Ka5 {[%clk 0:00:09]}  g4 {[%clk 0:00:12]} 60. Kxa6 {[%clk 0:00:10]}  g3 {[%clk 0:00:13]} 61. Kb5 {[%clk 0:00:10]}  g2 {[%clk 0:00:14]} 62. Kc6 {[%clk 0:00:10]}  g1=Q {[%clk 0:00:15]} 63. Kc5 {[%clk 0:00:10]}  Qg5+ {[%clk 0:00:15]} 64. Kb4 {[%clk 0:00:10]}  Qf4+ {[%clk 0:00:15]} 65. Ka3 {[%clk 0:00:10]}  Qc4 {[%clk 0:00:14]} 66. Kb2 {[%clk 0:00:10]}  Qc2+ {[%clk 0:00:14]} 67. Ka3 {[%clk 0:00:11]}  Qb1 {[%clk 0:00:14]} 68. Ka4 {[%clk 0:00:11]}  Kd3 {[%clk 0:00:15]} 69. Ka5 {[%clk 0:00:09]}  Kc4 {[%clk 0:00:16]} 0-1

[Event "January 9 Late 2024"]
[Site "https://www.chess.com"]
[Date "2024.01.09"]
[Round "10"]
[White "Fareh, Youness"]
[Black "Skaric, Djuro"]
[Result "0-1"]
[Board "134"]
[TimeControl "180+1"]
[WhiteFideId "9000526"]
[BlackFideId "934569"]
[WhiteElo "2040"]
[BlackElo "2280"]
[WhiteTeam "MAR"]
[BlackTeam "SRB"]
[WhiteClock "0:00:29"]
[BlackClock "0:02:16"]

1. Nf3 {[%clk 0:03:00]}  d6 {[%clk 0:03:00]} 2. d4 {[%clk 0:02:59]}  Nf6 {[%clk 0:03:01]} 3. g3 {[%clk 0:02:59]}  g6 {[%clk 0:03:01]} 4. Bg2 {[%clk 0:02:59]}  Bg7 {[%clk 0:03:01]} 5. O-O {[%clk 0:03:00]}  O-O {[%clk 0:03:01]} 6. c4 {[%clk 0:03:00]}  Nc6 {[%clk 0:03:02]} 7. Nc3 {[%clk 0:03:00]}  e5 {[%clk 0:03:02]} 8. d5 {[%clk 0:02:57]}  Ne7 {[%clk 0:03:01]} 9. e4 {[%clk 0:02:57]}  h6 {[%clk 0:03:02]} 10. Qc2 {[%clk 0:02:53]}  Ne8 {[%clk 0:03:03]} 11. b4 {[%clk 0:02:52]}  f5 {[%clk 0:03:03]} 12. a4 {[%clk 0:02:47]}  f4 {[%clk 0:03:04]} 13. c5 {[%clk 0:02:46]}  g5 {[%clk 0:03:04]} 14. cxd6 {[%clk 0:02:46]}  cxd6 {[%clk 0:03:03]} 15. Nb5 {[%clk 0:02:46]}  Ng6 {[%clk 0:03:03]} 16. Bd2 {[%clk 0:02:41]}  g4 {[%clk 0:03:03]} 17. Ne1 {[%clk 0:02:31]}  a6 {[%clk 0:03:02]} 18. Na3 {[%clk 0:02:29]}  Bd7 {[%clk 0:03:02]} 19. f3 {[%clk 0:02:21]}  h5 {[%clk 0:03:01]} 20. Nd3 {[%clk 0:02:20]}  fxg3 {[%clk 0:02:58]} 21. hxg3 {[%clk 0:02:19]}  h4 {[%clk 0:02:58]} 22. Be1 {[%clk 0:02:13]}  gxf3 {[%clk 0:02:50]} 23. Rxf3 {[%clk 0:02:04]}  Rxf3 {[%clk 0:02:49]} 24. Bxf3 {[%clk 0:02:05]}  Qg5 {[%clk 0:02:49]} 25. Qc1 {[%clk 0:01:52]}  Nf4 {[%clk 0:02:46]} 26. Ra2 {[%clk 0:01:36]}  Rc8 {[%clk 0:02:42]} 27. Qd2 {[%clk 0:01:30]}  hxg3 {[%clk 0:02:37]} 28. Nxf4 {[%clk 0:01:26]}  exf4 {[%clk 0:02:34]} 29. Rc2 {[%clk 0:01:10]}  Rxc2 {[%clk 0:02:33]} 30. Nxc2 {[%clk 0:01:11]}  Be5 {[%clk 0:02:25]} 31. a5 {[%clk 0:01:09]}  Nf6 {[%clk 0:02:24]} 32. Qe2 {[%clk 0:00:58]}  Qh4 {[%clk 0:02:24]} 33. Bd2 {[%clk 0:00:47]}  Bb5 {[%clk 0:02:18]} 34. Qg2 {[%clk 0:00:46]}  Bd3 {[%clk 0:02:18]} 35. Ne1 {[%clk 0:00:29]}  Bd4+ {[%clk 0:02:16]} 0-1

[Event "January 9 Late 2024"]
[Site "https://www.chess.com"]
[Date "2024.01.09"]
[Round "10"]
[White "Celestino, Rafael Teixeira"]
[Black "Winkels, Marcel"]
[Result "1-0"]
[Board "135"]
[TimeControl "180+1"]
[WhiteFideId "2108925"]
[BlackFideId "1003887"]
[WhiteElo "2212"]
[BlackElo "2016"]
[WhiteTeam "BRA"]
[BlackTeam "NED"]
[WhiteClock "0:00:15"]
[BlackClock "0:00:00"]

1. e4 {[%clk 0:02:57]}  e6 {[%clk 0:02:59]} 2. d4 {[%clk 0:02:57]}  d5 {[%clk 0:03:00]} 3. Bd3 {[%clk 0:02:55]}  dxe4 {[%clk 0:02:59]} 4. Bxe4 {[%clk 0:02:56]}  Nf6 {[%clk 0:02:59]} 5. Bf3 {[%clk 0:02:55]}  Be7 {[%clk 0:02:48]} 6. c4 {[%clk 0:02:54]}  O-O {[%clk 0:02:48]} 7. Ne2 {[%clk 0:02:53]}  c6 {[%clk 0:02:46]} 8. O-O {[%clk 0:02:53]}  b6 {[%clk 0:02:45]} 9. Nbc3 {[%clk 0:02:53]}  Bb7 {[%clk 0:02:45]} 10. Bg5 {[%clk 0:02:53]}  Nbd7 {[%clk 0:02:45]} 11. Re1 {[%clk 0:02:50]}  Rb8 {[%clk 0:02:44]} 12. Bf4 {[%clk 0:02:47]}  Rc8 {[%clk 0:02:43]} 13. Qd2 {[%clk 0:02:44]}  Re8 {[%clk 0:02:39]} 14. Rad1 {[%clk 0:02:43]}  Ba8 {[%clk 0:02:36]} 15. Ng3 {[%clk 0:02:30]}  Nf8 {[%clk 0:02:31]} 16. a3 {[%clk 0:02:23]}  Ng6 {[%clk 0:02:30]} 17. Bg5 {[%clk 0:02:23]}  c5 {[%clk 0:02:29]} 18. d5 {[%clk 0:02:22]}  Nxd5 {[%clk 0:02:20]} 19. cxd5 {[%clk 0:01:23]}  Bxg5 {[%clk 0:02:19]} 20. Qd3 {[%clk 0:01:23]}  Nf4 {[%clk 0:02:12]} 21. Qa6 {[%clk 0:01:14]}  Nxd5 {[%clk 0:02:06]} 22. Qxa7 {[%clk 0:01:08]}  Bc6 {[%clk 0:01:57]} 23. Nxd5 {[%clk 0:01:01]}  Bxd5 {[%clk 0:01:50]} 24. Bxd5 {[%clk 0:01:00]}  exd5 {[%clk 0:01:49]} 25. Rxe8+ {[%clk 0:01:00]}  Qxe8 {[%clk 0:01:48]} 26. Qxb6 {[%clk 0:01:01]}  Qe6 {[%clk 0:01:30]} 27. Qb7 {[%clk 0:00:52]}  d4 {[%clk 0:01:23]} 28. Ne4 {[%clk 0:00:46]}  Be7 {[%clk 0:01:18]} 29. a4 {[%clk 0:00:38]}  f5 {[%clk 0:01:09]} 30. Ng3 {[%clk 0:00:38]}  g6 {[%clk 0:01:05]} 31. a5 {[%clk 0:00:38]}  f4 {[%clk 0:00:52]} 32. Ne4 {[%clk 0:00:37]}  Re8 {[%clk 0:00:45]} 33. a6 {[%clk 0:00:36]}  Qc8 {[%clk 0:00:39]} 34. Qd5+ {[%clk 0:00:26]}  Kg7 {[%clk 0:00:37]} 35. Qe5+ {[%clk 0:00:22]}  Kg8 {[%clk 0:00:35]} 36. Rc1 {[%clk 0:00:18]}  Bf8 {[%clk 0:00:24]} 37. Qd5+ {[%clk 0:00:18]}  Kg7 {[%clk 0:00:23]} 38. Ng5 {[%clk 0:00:16]}  h6 {[%clk 0:00:00]} 39. Qf7+ {[%clk 0:00:15]} 1-0

[Event "January 9 Late 2024"]
[Site "https://www.chess.com"]
[Date "2024.01.09"]
[Round "10"]
[White "Quirke, Jeffrey"]
[Black "Smirnov, Timofey"]
[Result "1-0"]
[Board "136"]
[TimeControl "180+1"]
[WhiteFideId "2013029"]
[BlackFideId "24176427"]
[WhiteElo "2142"]
[BlackElo "1998"]
[WhiteTeam "USA"]
[BlackTeam "RUS"]
[WhiteClock "0:01:03"]
[BlackClock "0:00:00"]

1. e4 {[%clk 0:03:00]}  e5 {[%clk 0:02:57]} 2. Nf3 {[%clk 0:03:00]}  Nf6 {[%clk 0:02:56]} 3. Bc4 {[%clk 0:03:00]}  Nxe4 {[%clk 0:02:56]} 4. Nxe5 {[%clk 0:02:56]}  d5 {[%clk 0:02:53]} 5. Bb3 {[%clk 0:02:53]}  Qg5 {[%clk 0:02:48]} 6. O-O {[%clk 0:02:51]}  Qxe5 {[%clk 0:02:47]} 7. d3 {[%clk 0:02:46]}  Bd6 {[%clk 0:02:40]} 8. g3 {[%clk 0:02:38]}  Ng5 {[%clk 0:02:28]} 9. Bf4 {[%clk 0:02:21]}  Nh3+ {[%clk 0:02:18]} 10. Kh1 {[%clk 0:02:19]}  Nxf4 {[%clk 0:02:16]} 11. Re1 {[%clk 0:02:18]}  Qxe1+ {[%clk 0:01:27]} 12. Qxe1+ {[%clk 0:02:18]}  Ne6 {[%clk 0:01:28]} 13. Bxd5 {[%clk 0:02:17]}  O-O {[%clk 0:01:26]} 14. Nc3 {[%clk 0:02:14]}  Bd7 {[%clk 0:01:16]} 15. Kg1 {[%clk 0:02:08]}  Bc6 {[%clk 0:01:15]} 16. Bxe6 {[%clk 0:02:08]}  fxe6 {[%clk 0:01:15]} 17. Qxe6+ {[%clk 0:02:07]}  Kh8 {[%clk 0:01:15]} 18. Ne4 {[%clk 0:01:56]}  Bxe4 {[%clk 0:01:12]} 19. dxe4 {[%clk 0:01:54]}  Nc6 {[%clk 0:01:10]} 20. f4 {[%clk 0:01:44]}  Nd4 {[%clk 0:00:56]} 21. Qc4 {[%clk 0:01:32]}  Nc6 {[%clk 0:00:28]} 22. e5 {[%clk 0:01:29]}  Be7 {[%clk 0:00:26]} 23. Rf1 {[%clk 0:01:25]}  Rad8 {[%clk 0:00:24]} 24. c3 {[%clk 0:01:18]}  Rd2 {[%clk 0:00:20]} 25. Rf2 {[%clk 0:01:17]}  Rfd8 {[%clk 0:00:18]} 26. Rxd2 {[%clk 0:01:10]}  Rxd2 {[%clk 0:00:18]} 27. Qe6 {[%clk 0:01:11]}  Rd1+ {[%clk 0:00:16]} 28. Kg2 {[%clk 0:01:10]}  h6 {[%clk 0:00:14]} 29. f5 {[%clk 0:01:09]}  Rd2+ {[%clk 0:00:14]} 30. Kh3 {[%clk 0:01:09]}  Re2 {[%clk 0:00:13]} 31. f6 {[%clk 0:01:06]}  Rxe5 {[%clk 0:00:13]} 32. Qxe5 {[%clk 0:01:04]}  Nxe5 {[%clk 0:00:00]} 33. fxe7 {[%clk 0:01:03]} 1-0

[Event "January 9 Late 2024"]
[Site "https://www.chess.com"]
[Date "2024.01.09"]
[Round "10"]
[White "Dahlgren, James Allen"]
[Black "Gulamirian, Korun"]
[Result "1-0"]
[Board "138"]
[TimeControl "180+1"]
[WhiteFideId "22256873"]
[BlackFideId "4144899"]
[WhiteElo "2121"]
[BlackElo "1649"]
[WhiteTeam "ESP"]
[BlackTeam "RUS"]
[WhiteClock "0:00:06"]
[BlackClock "0:00:15"]

1. e3 {[%clk 0:03:00]}  e5 {[%clk 0:02:57]} 2. c4 {[%clk 0:03:01]}  Nf6 {[%clk 0:02:56]} 3. Nc3 {[%clk 0:03:00]}  c6 {[%clk 0:02:56]} 4. d4 {[%clk 0:03:00]}  exd4 {[%clk 0:02:50]} 5. exd4 {[%clk 0:03:01]}  Bb4 {[%clk 0:02:49]} 6. Nf3 {[%clk 0:03:02]}  O-O {[%clk 0:02:48]} 7. Be2 {[%clk 0:02:56]}  Re8 {[%clk 0:02:48]} 8. O-O {[%clk 0:02:55]}  d5 {[%clk 0:02:44]} 9. cxd5 {[%clk 0:02:43]}  Nxd5 {[%clk 0:02:32]} 10. Qb3 {[%clk 0:02:39]}  Nxc3 {[%clk 0:02:22]} 11. bxc3 {[%clk 0:02:40]}  Bd6 {[%clk 0:02:20]} 12. Bc4 {[%clk 0:02:35]}  Qc7 {[%clk 0:02:19]} 13. Ng5 {[%clk 0:02:18]}  Re7 {[%clk 0:02:07]} 14. Bd2 {[%clk 0:02:04]}  b5 {[%clk 0:02:06]} 15. Bxf7+ {[%clk 0:01:55]}  Rxf7 {[%clk 0:02:02]} 16. Rae1 {[%clk 0:01:54]}  Qd7 {[%clk 0:01:49]} 17. Nxf7 {[%clk 0:01:36]}  Qxf7 {[%clk 0:01:47]} 18. Re8+ {[%clk 0:01:34]}  Bf8 {[%clk 0:01:47]} 19. Rxc8 {[%clk 0:01:25]}  a5 {[%clk 0:01:39]} 20. Re1 {[%clk 0:01:22]}  a4 {[%clk 0:01:37]} 21. Qxf7+ {[%clk 0:01:16]}  Kxf7 {[%clk 0:01:36]} 22. Ree8 {[%clk 0:01:15]}  Bd6 {[%clk 0:01:34]} 23. Red8 {[%clk 0:01:03]}  Ke6 {[%clk 0:01:28]} 24. g3 {[%clk 0:00:54]}  Ra7 {[%clk 0:01:22]} 25. Rxb8 {[%clk 0:00:33]}  Bxb8 {[%clk 0:01:20]} 26. Rxb8 {[%clk 0:00:34]}  Kd5 {[%clk 0:01:19]} 27. Rc8 {[%clk 0:00:18]}  Re7 {[%clk 0:01:16]} 28. Kf1 {[%clk 0:00:10]}  h6 {[%clk 0:01:16]} 29. Be3 {[%clk 0:00:10]}  g5 {[%clk 0:01:13]} 30. Ke2 {[%clk 0:00:09]}  Re6 {[%clk 0:01:13]} 31. Kd3 {[%clk 0:00:09]}  Rg6 {[%clk 0:01:04]} 32. Rd8+ {[%clk 0:00:09]}  Ke6 {[%clk 0:01:02]} 33. Ke4 {[%clk 0:00:09]}  Ke7 {[%clk 0:01:01]} 34. Rc8 {[%clk 0:00:09]}  Kd7 {[%clk 0:01:00]} 35. Rh8 {[%clk 0:00:09]}  Re6+ {[%clk 0:00:59]} 36. Kf5 {[%clk 0:00:08]}  Rd6 {[%clk 0:00:52]} 37. Rh7+ {[%clk 0:00:08]}  Ke8 {[%clk 0:00:49]} 38. Ke5 {[%clk 0:00:07]}  Rg6 {[%clk 0:00:47]} 39. Ra7 {[%clk 0:00:06]}  Kd8 {[%clk 0:00:38]} 40. Kf5 {[%clk 0:00:04]}  Rd6 {[%clk 0:00:37]} 41. h4 {[%clk 0:00:03]}  gxh4 {[%clk 0:00:34]} 42. gxh4 {[%clk 0:00:04]}  Ke8 {[%clk 0:00:27]} 43. Bf4 {[%clk 0:00:04]}  Rd7 {[%clk 0:00:25]} 44. Rxd7 {[%clk 0:00:04]}  Kxd7 {[%clk 0:00:25]} 45. Bxh6 {[%clk 0:00:04]}  Kd6 {[%clk 0:00:25]} 46. Bf8+ {[%clk 0:00:05]}  Kd7 {[%clk 0:00:25]} 47. Bc5 {[%clk 0:00:05]}  Ke8 {[%clk 0:00:26]} 48. h5 {[%clk 0:00:05]}  Kf7 {[%clk 0:00:26]} 49. Kg5 {[%clk 0:00:05]}  Kg7 {[%clk 0:00:26]} 50. h6+ {[%clk 0:00:05]}  Kh7 {[%clk 0:00:27]} 51. Kh5 {[%clk 0:00:06]}  Kg8 {[%clk 0:00:24]} 52. Kg6 {[%clk 0:00:06]}  Kh8 {[%clk 0:00:24]} 53. h7 {[%clk 0:00:05]}  a3 {[%clk 0:00:20]} 54. d5 {[%clk 0:00:05]}  cxd5 {[%clk 0:00:15]} 55. Bd4# {[%clk 0:00:06]} 1-0

[Event "January 9 Late 2024"]
[Site "https://www.chess.com"]
[Date "2024.01.09"]
[Round "10"]
[White "Thake, Conrad"]
[Black "Guzman Lozano, Campo Elias"]
[Result "0-1"]
[Board "139"]
[TimeControl "180+1"]
[WhiteFideId "5602947"]
[BlackFideId "4403746"]
[WhiteElo "1848"]
[BlackElo "2151"]
[WhiteTeam "MLT"]
[BlackTeam "COL"]
[WhiteClock "0:00:41"]
[BlackClock "0:00:36"]

1. e4 {[%clk 0:03:00]}  c5 {[%clk 0:02:59]} 2. Nc3 {[%clk 0:02:57]}  Nc6 {[%clk 0:02:59]} 3. d3 {[%clk 0:02:57]}  g6 {[%clk 0:02:58]} 4. g3 {[%clk 0:02:57]}  Bg7 {[%clk 0:02:58]} 5. Bg2 {[%clk 0:02:57]}  e6 {[%clk 0:02:58]} 6. Nh3 {[%clk 0:02:56]}  Nge7 {[%clk 0:02:58]} 7. O-O {[%clk 0:02:56]}  O-O {[%clk 0:02:58]} 8. Be3 {[%clk 0:02:52]}  d6 {[%clk 0:02:56]} 9. f4 {[%clk 0:02:50]}  Rb8 {[%clk 0:02:55]} 10. Qd2 {[%clk 0:02:49]}  b5 {[%clk 0:02:54]} 11. g4 {[%clk 0:02:44]}  b4 {[%clk 0:02:54]} 12. Ne2 {[%clk 0:02:43]}  f5 {[%clk 0:02:36]} 13. gxf5 {[%clk 0:02:39]}  gxf5 {[%clk 0:02:34]} 14. c3 {[%clk 0:02:37]}  Kh8 {[%clk 0:02:19]} 15. d4 {[%clk 0:02:36]}  bxc3 {[%clk 0:02:15]} 16. bxc3 {[%clk 0:02:35]}  cxd4 {[%clk 0:02:14]} 17. cxd4 {[%clk 0:02:34]}  d5 {[%clk 0:02:13]} 18. e5 {[%clk 0:02:31]}  Rg8 {[%clk 0:02:12]} 19. Rab1 {[%clk 0:02:27]}  Bd7 {[%clk 0:02:10]} 20. Rxb8 {[%clk 0:02:25]}  Qxb8 {[%clk 0:02:07]} 21. Ng5 {[%clk 0:02:25]}  Bh6 {[%clk 0:01:57]} 22. Nf7+ {[%clk 0:02:24]}  Kg7 {[%clk 0:01:55]} 23. Nxh6 {[%clk 0:02:22]}  Kxh6 {[%clk 0:01:55]} 24. Nc3 {[%clk 0:02:14]}  Nd8 {[%clk 0:01:49]} 25. Rf3 {[%clk 0:02:13]}  Kg7 {[%clk 0:01:48]} 26. Rg3+ {[%clk 0:02:11]}  Kh8 {[%clk 0:01:48]} 27. Rxg8+ {[%clk 0:02:11]}  Kxg8 {[%clk 0:01:47]} 28. Qf2 {[%clk 0:02:08]}  Ng6 {[%clk 0:01:47]} 29. h4 {[%clk 0:02:04]}  Qb4 {[%clk 0:01:39]} 30. Nxd5 {[%clk 0:01:54]}  Qb1+ {[%clk 0:01:29]} 31. Kh2 {[%clk 0:01:53]}  exd5 {[%clk 0:01:28]} 32. Bxd5+ {[%clk 0:01:53]}  Kh8 {[%clk 0:01:28]} 33. h5 {[%clk 0:01:52]}  Ne7 {[%clk 0:01:25]} 34. Bb3 {[%clk 0:01:50]}  Bc6 {[%clk 0:01:16]} 35. Qg1 {[%clk 0:01:30]}  Qb2+ {[%clk 0:01:04]} 36. Qf2 {[%clk 0:01:28]}  Qb1 {[%clk 0:00:55]} 37. Qg1 {[%clk 0:01:28]}  Qe4 {[%clk 0:00:52]} 38. h6 {[%clk 0:01:23]}  Ng6 {[%clk 0:00:52]} 39. Bd1 {[%clk 0:00:49]}  Ne6 {[%clk 0:00:47]} 40. Bh5 {[%clk 0:00:44]}  Nexf4 {[%clk 0:00:45]} 41. Bxf4 {[%clk 0:00:43]}  Qxf4+ {[%clk 0:00:44]} 42. Kh3 {[%clk 0:00:41]}  Qh4# {[%clk 0:00:36]} 0-1

[Event "January 9 Late 2024"]
[Site "https://www.chess.com"]
[Date "2024.01.09"]
[Round "10"]
[White "Van Baar, Esper"]
[Black "Prokhorov, Oleksandr"]
[Result "0-1"]
[Board "142"]
[TimeControl "180+1"]
[WhiteFideId "1049321"]
[BlackFideId "14105578"]
[WhiteElo "2089"]
[BlackElo "2309"]
[WhiteTeam "NED"]
[BlackTeam "UKR"]
[WhiteClock "0:00:00"]
[BlackClock "0:00:02"]

1. d4 {[%clk 0:03:00]}  g6 {[%clk 0:02:56]} 2. Bf4 {[%clk 0:02:50]}  Bg7 {[%clk 0:02:49]} 3. Nf3 {[%clk 0:02:50]}  d6 {[%clk 0:02:48]} 4. e3 {[%clk 0:02:50]}  Nd7 {[%clk 0:02:48]} 5. h3 {[%clk 0:02:50]}  e5 {[%clk 0:02:49]} 6. dxe5 {[%clk 0:02:49]}  dxe5 {[%clk 0:02:48]} 7. Bg3 {[%clk 0:02:49]}  Qe7 {[%clk 0:02:49]} 8. Nc3 {[%clk 0:02:42]}  c6 {[%clk 0:02:48]} 9. Qd2 {[%clk 0:02:41]}  Nh6 {[%clk 0:02:47]} 10. O-O-O {[%clk 0:02:40]}  O-O {[%clk 0:02:45]} 11. Bh4 {[%clk 0:02:35]}  f6 {[%clk 0:02:43]} 12. Bc4+ {[%clk 0:02:35]}  Kh8 {[%clk 0:02:43]} 13. g4 {[%clk 0:02:29]}  b5 {[%clk 0:02:42]} 14. Bb3 {[%clk 0:02:16]}  a5 {[%clk 0:02:37]} 15. a4 {[%clk 0:02:17]}  b4 {[%clk 0:02:36]} 16. Ne4 {[%clk 0:02:13]}  c5 {[%clk 0:02:36]} 17. Qd6 {[%clk 0:02:09]}  Qe8 {[%clk 0:02:31]} 18. Nxc5 {[%clk 0:02:07]}  Nxc5 {[%clk 0:02:26]} 19. Qxc5 {[%clk 0:02:08]}  Ba6 {[%clk 0:02:26]} 20. Qd6 {[%clk 0:01:54]}  Be2 {[%clk 0:02:10]} 21. Nd2 {[%clk 0:01:36]}  Bxd1 {[%clk 0:02:04]} 22. Rxd1 {[%clk 0:01:37]}  Rd8 {[%clk 0:02:00]} 23. Qc5 {[%clk 0:01:33]}  Qd7 {[%clk 0:01:53]} 24. Qxa5 {[%clk 0:01:31]}  g5 {[%clk 0:01:48]} 25. Bg3 {[%clk 0:01:31]}  Qd6 {[%clk 0:01:42]} 26. Qb5 {[%clk 0:01:10]}  Nf7 {[%clk 0:01:39]} 27. Qc4 {[%clk 0:01:09]}  Rd7 {[%clk 0:01:28]} 28. Qe6 {[%clk 0:01:03]}  Rfd8 {[%clk 0:01:22]} 29. Qxd6 {[%clk 0:01:02]}  Nxd6 {[%clk 0:01:22]} 30. Nc4 {[%clk 0:00:52]}  Ne4 {[%clk 0:01:19]} 31. Rxd7 {[%clk 0:00:51]}  Rxd7 {[%clk 0:01:20]} 32. a5 {[%clk 0:00:39]}  Bf8 {[%clk 0:01:18]} 33. h4 {[%clk 0:00:25]}  Ra7 {[%clk 0:01:11]} 34. hxg5 {[%clk 0:00:20]}  Nxg5 {[%clk 0:01:05]} 35. f4 {[%clk 0:00:18]}  Ne4 {[%clk 0:01:02]} 36. Bh2 {[%clk 0:00:18]}  exf4 {[%clk 0:00:55]} 37. Bxf4 {[%clk 0:00:18]}  Bc5 {[%clk 0:00:49]} 38. Kd1 {[%clk 0:00:15]}  Rd7+ {[%clk 0:00:45]} 39. Ke2 {[%clk 0:00:15]}  Kg7 {[%clk 0:00:37]} 40. Ba4 {[%clk 0:00:12]}  Re7 {[%clk 0:00:36]} 41. a6 {[%clk 0:00:11]}  Ba7 {[%clk 0:00:36]} 42. Bc6 {[%clk 0:00:09]}  Kg6 {[%clk 0:00:32]} 43. Kf3 {[%clk 0:00:08]}  Ng5+ {[%clk 0:00:30]} 44. Bxg5 {[%clk 0:00:06]}  Kxg5 {[%clk 0:00:29]} 45. e4 {[%clk 0:00:05]}  h5 {[%clk 0:00:19]} 46. gxh5 {[%clk 0:00:04]}  Kxh5 {[%clk 0:00:20]} 47. Bd5 {[%clk 0:00:05]}  Rc7 {[%clk 0:00:17]} 48. b3 {[%clk 0:00:03]}  Kg5 {[%clk 0:00:16]} 49. Ke2 {[%clk 0:00:03]}  Kf4 {[%clk 0:00:13]} 50. Kd3 {[%clk 0:00:03]}  Rh7 {[%clk 0:00:12]} 51. Nd2 {[%clk 0:00:02]}  Rh3+ {[%clk 0:00:12]} 52. Kc4 {[%clk 0:00:02]}  Rh2 {[%clk 0:00:10]} 53. Nb1 {[%clk 0:00:01]}  Rh1 {[%clk 0:00:04]} 54. Nd2 {[%clk 0:00:01]}  Rc1 {[%clk 0:00:04]} 55. Kxb4 {[%clk 0:00:01]}  Rxc2 {[%clk 0:00:04]} 56. Nc4 {[%clk 0:00:02]}  Rc1 {[%clk 0:00:03]} 57. Na5 {[%clk 0:00:03]}  Ra1 {[%clk 0:00:03]} 58. Nc6 {[%clk 0:00:03]}  Bb6 {[%clk 0:00:03]} 59. Kb5 {[%clk 0:00:04]}  Be3 {[%clk 0:00:03]} 60. b4 {[%clk 0:00:04]}  Kf3 {[%clk 0:00:02]} 61. Na5 {[%clk 0:00:05]}  Ke2 {[%clk 0:00:02]} 62. Nc6 {[%clk 0:00:03]}  Rb1 {[%clk 0:00:02]} 63. a7 {[%clk 0:00:03]}  Ra1 {[%clk 0:00:02]} 64. Kc4 {[%clk 0:00:03]}  Bxa7 {[%clk 0:00:03]} 65. Nxa7 {[%clk 0:00:03]}  Rxa7 {[%clk 0:00:04]} 66. b5 {[%clk 0:00:03]}  Rc7+ {[%clk 0:00:02]} 67. Kb4 {[%clk 0:00:02]}  Ke3 {[%clk 0:00:02]} 68. Bc6 {[%clk 0:00:02]}  Kd4 {[%clk 0:00:01]} 69. Ka5 {[%clk 0:00:02]}  f5 {[%clk 0:00:02]} 70. exf5 {[%clk 0:00:00]}  Rf7 {[%clk 0:00:02]} 0-1